[Event "*** Titled Tuesday Blitz"]
[Site "Chess.com"]
[Date "2021.03.09"]
[Round "9"]
[White "Mrlammy"]
[Black "NiranjanNavalgund"]
[Result "0-1"]
[WhiteElo "2316"]
[BlackElo "2457"]
[TimeControl "180+1"]
[EndTime "11:50:06 PST"]
[Termination "NiranjanNavalgund won by checkmate"]

1. e4 {[%clk 0:03:00.9]} 1... e5 {[%clk 0:02:50.6]} 2. Nf3 {[%clk 0:03:00.5]}
2... Nc6 {[%clk 0:02:44]} 3. Bb5 {[%clk 0:02:59.6]} 3... a6 {[%clk 0:02:43.2]}
4. Bxc6 {[%clk 0:02:59.7]} 4... dxc6 {[%clk 0:02:42.9]} 5. O-O {[%clk
0:03:00.1]} 5... Bg4 {[%clk 0:02:41.1]} 6. h3 {[%clk 0:03:00.1]} 6... Bxf3
{[%clk 0:02:39.1]} 7. Qxf3 {[%clk 0:03:01]} 7... Qd7 {[%clk 0:02:36.8]} 8. Qg3
{[%clk 0:02:54.8]} 8... f6 {[%clk 0:02:36.4]} 9. d3 {[%clk 0:02:52.9]} 9... g5
{[%clk 0:02:31]} 10. Nc3 {[%clk 0:02:51.5]} 10... h5 {[%clk 0:02:30.3]} 11. h4
{[%clk 0:02:44.6]} 11... gxh4 {[%clk 0:02:26.1]} 12. Qxh4 {[%clk 0:02:45.5]}
12... O-O-O {[%clk 0:02:26.2]} 13. Qh3 {[%clk 0:02:17.2]} 13... Qxh3 {[%clk
0:02:14.8]} 14. gxh3 {[%clk 0:02:18.1]} 14... Bc5 {[%clk 0:02:15.4]} 15. Be3
{[%clk 0:02:16.3]} 15... Bb6 {[%clk 0:02:10.7]} 16. Bxb6 {[%clk 0:02:09.8]}
16... cxb6 {[%clk 0:02:11.6]} 17. f4 {[%clk 0:02:09.6]} 17... Rh7 {[%clk
0:02:08.9]} 18. fxe5 {[%clk 0:02:09.3]} 18... fxe5 {[%clk 0:02:09.8]} 19. Kh2
{[%clk 0:02:08.9]} 19... Ne7 {[%clk 0:02:07.3]} 20. Rf6 {[%clk 0:02:03.3]} 20...
Kc7 {[%clk 0:02:00.4]} 21. Raf1 {[%clk 0:02:02]} 21... Kd7 {[%clk 0:01:49.7]}
22. Rf7 {[%clk 0:01:42.6]} 22... Rxf7 {[%clk 0:01:45.5]} 23. Rxf7 {[%clk
0:01:43.5]} 23... Rg8 {[%clk 0:01:45.5]} 24. Rh7 {[%clk 0:01:42]} 24... Rg5
{[%clk 0:01:35.6]} 25. h4 {[%clk 0:01:39.2]} 25... Rg4 {[%clk 0:01:33.1]} 26.
Rxh5 {[%clk 0:01:39]} 26... Ng6 {[%clk 0:01:30.8]} 27. Rg5 {[%clk 0:01:02.9]}
27... Rxh4+ {[%clk 0:01:18.6]} 28. Kg3 {[%clk 0:01:02.2]} 28... Rh6 {[%clk
0:01:19.5]} 29. Ne2 {[%clk 0:00:56.3]} 29... c5 {[%clk 0:01:05.3]} 30. Ng1
{[%clk 0:00:51.1]} 30... Ke6 {[%clk 0:00:53.8]} 31. Nf3 {[%clk 0:00:49.6]} 31...
a5 {[%clk 0:00:47.4]} 32. a4 {[%clk 0:00:44.1]} 32... Kd6 {[%clk 0:00:45.8]} 33.
Kg4 {[%clk 0:00:31.9]} 33... Ke6 {[%clk 0:00:46]} 34. b3 {[%clk 0:00:28.5]}
34... Kd6 {[%clk 0:00:43.5]} 35. Kf5 {[%clk 0:00:23.6]} 35... Ne7+ {[%clk
0:00:33]} 36. Kg4 {[%clk 0:00:23.7]} 36... Nc6 {[%clk 0:00:31.7]} 37. Nd2 {[%clk
0:00:17.6]} 37... Rh2 {[%clk 0:00:20.7]} 38. Nc4+ {[%clk 0:00:17.5]} 38... Kc7
{[%clk 0:00:20.2]} 39. Rg7+ {[%clk 0:00:17.2]} 39... Kb8 {[%clk 0:00:20.2]} 40.
Nxb6 {[%clk 0:00:17.3]} 40... Rxc2 {[%clk 0:00:20.2]} 41. Nd7+ {[%clk
0:00:17.6]} 41... Ka7 {[%clk 0:00:20.4]} 42. Kf5 {[%clk 0:00:17.2]} 42... Rc3
{[%clk 0:00:18.9]} 43. Nxe5 {[%clk 0:00:16.4]} 43... Nxe5 {[%clk 0:00:19.8]} 44.
Kxe5 {[%clk 0:00:16.9]} 44... Rxd3 {[%clk 0:00:19.3]} 45. Rc7 {[%clk 0:00:16.4]}
45... Kb6 {[%clk 0:00:19]} 46. Rc8 {[%clk 0:00:15.7]} 46... Rxb3 {[%clk
0:00:19.3]} 47. Kd5 {[%clk 0:00:16]} 47... Rd3+ {[%clk 0:00:19.5]} 48. Ke5
{[%clk 0:00:11]} 48... Rd4 {[%clk 0:00:19.3]} 49. Kf4 {[%clk 0:00:09.6]} 49...
Rxa4 {[%clk 0:00:19.4]} 50. Ke3 {[%clk 0:00:09.6]} 50... Ra1 {[%clk 0:00:19.7]}
51. Kd2 {[%clk 0:00:08.2]} 51... Rh1 {[%clk 0:00:19.2]} 52. e5 {[%clk
0:00:08.3]} 52... Rh5 {[%clk 0:00:19.2]} 53. e6 {[%clk 0:00:08.6]} 53... Re5
{[%clk 0:00:19.2]} 54. Re8 {[%clk 0:00:09.2]} 54... Kc6 {[%clk 0:00:18.7]} 55.
e7 {[%clk 0:00:07.9]} 55... Kb6 {[%clk 0:00:18.8]} 56. Kd3 {[%clk 0:00:06.7]}
56... a4 {[%clk 0:00:18.8]} 57. Kc4 {[%clk 0:00:06.7]} 57... a3 {[%clk
0:00:16.8]} 58. Kb3 {[%clk 0:00:06.8]} 58... Re3+ {[%clk 0:00:16.5]} 59. Ka2
{[%clk 0:00:06]} 59... c4 {[%clk 0:00:16.8]} 60. Rc8 {[%clk 0:00:05.6]} 60...
Rxe7 {[%clk 0:00:16.2]} 61. Rxc4 {[%clk 0:00:06.2]} 61... Re3 {[%clk 0:00:16.3]}
62. Ra4 {[%clk 0:00:05.7]} 62... Kc5 {[%clk 0:00:15.5]} 63. Ra7 {[%clk
0:00:03.3]} 63... b5 {[%clk 0:00:15.4]} 64. Rc7+ {[%clk 0:00:03.1]} 64... Kb4
{[%clk 0:00:15.7]} 65. Rc1 {[%clk 0:00:04]} 65... Re2+ {[%clk 0:00:15.9]} 66.
Ka1 {[%clk 0:00:04.4]} 66... Kb3 {[%clk 0:00:16.3]} 67. Rb1+ {[%clk 0:00:04.8]}
67... Rb2 {[%clk 0:00:15.8]} 68. Rc1 {[%clk 0:00:03.5]} 68... Ra2+ {[%clk
0:00:16]} 69. Kb1 {[%clk 0:00:03]} 69... Rd2 {[%clk 0:00:16.9]} 70. Ka1 {[%clk
0:00:02.9]} 70... b4 {[%clk 0:00:17.1]} 71. Re1 {[%clk 0:00:02.9]} 71... Ka4
{[%clk 0:00:17.3]} 72. Rf1 {[%clk 0:00:02.5]} 72... Re2 {[%clk 0:00:17.5]} 73.
Rd1 {[%clk 0:00:02.3]} 73... b3 {[%clk 0:00:17.8]} 74. Rd4+ {[%clk 0:00:02.4]}
74... Kb5 {[%clk 0:00:18]} 75. Rd5+ {[%clk 0:00:02.9]} 75... Kc4 {[%clk
0:00:18.3]} 76. Rd1 {[%clk 0:00:03.4]} 76... Kc3 {[%clk 0:00:18.3]} 77. Rc1+
{[%clk 0:00:02.8]} 77... Rc2 {[%clk 0:00:18.5]} 78. Rh1 {[%clk 0:00:03.7]} 78...
b2+ {[%clk 0:00:13.8]} 79. Kb1 {[%clk 0:00:03.8]} 79... Rf2 {[%clk 0:00:12.3]}
80. Rh3+ {[%clk 0:00:03.7]} 80... Kb4 {[%clk 0:00:12.6]} 81. Rh4+ {[%clk
0:00:04.1]} 81... Kc5 {[%clk 0:00:12.8]} 82. Rh5+ {[%clk 0:00:04.4]} 82... Kd4
{[%clk 0:00:13.2]} 83. Rh4+ {[%clk 0:00:05.1]} 83... Ke3 {[%clk 0:00:13.2]} 84.
Rh3+ {[%clk 0:00:05.7]} 84... Rf3 {[%clk 0:00:13.6]} 85. Rh1 {[%clk 0:00:06.4]}
85... Kf2 {[%clk 0:00:13.2]} 86. Ka2 {[%clk 0:00:05.8]} 86... Kg2 {[%clk
0:00:12.7]} 87. Rd1 {[%clk 0:00:05.8]} 87... Rf1 {[%clk 0:00:12.9]} 88. Rd2+
{[%clk 0:00:05.7]} 88... Kf3 {[%clk 0:00:13.1]} 89. Rd3+ {[%clk 0:00:05.5]}
89... Ke4 {[%clk 0:00:13.4]} 90. Rb3 {[%clk 0:00:06.1]} 90... Ra1# {[%clk
0:00:11.6]} 0-1

[Event "*** Titled Tuesday Blitz"]
[Site "Chess.com"]
[Date "2021.03.09"]
[Round "9"]
[White "enriquetejedor"]
[Black "Kurkusha"]
[Result "1/2-1/2"]
[WhiteElo "2547"]
[BlackElo "2385"]
[TimeControl "180+1"]
[EndTime "11:50:27 PST"]
[Termination "Game drawn - insufficient material"]

1. e4 {[%clk 0:02:50.8]} 1... e5 {[%clk 0:02:58.7]} 2. Nf3 {[%clk 0:02:47.8]}
2... Nc6 {[%clk 0:02:58.5]} 3. d4 {[%clk 0:02:38.5]} 3... exd4 {[%clk
0:02:56.7]} 4. Bc4 {[%clk 0:02:26.5]} 4... Bc5 {[%clk 0:02:53.5]} 5. c3 {[%clk
0:02:24]} 5... Nf6 {[%clk 0:02:53]} 6. cxd4 {[%clk 0:02:19.3]} 6... Bb4+ {[%clk
0:02:52.2]} 7. Bd2 {[%clk 0:02:19.2]} 7... Nxe4 {[%clk 0:02:51.7]} 8. Bxb4
{[%clk 0:02:18.5]} 8... Nxb4 {[%clk 0:02:52.6]} 9. Bxf7+ {[%clk 0:02:15.8]} 9...
Kxf7 {[%clk 0:02:53.5]} 10. Qb3+ {[%clk 0:02:16.2]} 10... Kf8 {[%clk 0:02:53.7]}
11. Qxb4+ {[%clk 0:01:52.3]} 11... Qe7 {[%clk 0:02:53.2]} 12. Qxe7+ {[%clk
0:01:50.1]} 12... Kxe7 {[%clk 0:02:54.1]} 13. Nc3 {[%clk 0:01:48.4]} 13... Nf6
{[%clk 0:02:52.5]} 14. O-O-O {[%clk 0:01:47.2]} 14... Re8 {[%clk 0:02:51.6]} 15.
Rhe1+ {[%clk 0:01:36.8]} 15... Kd8 {[%clk 0:02:41]} 16. Ng5 {[%clk 0:01:23.4]}
16... d6 {[%clk 0:02:36.1]} 17. Nf7+ {[%clk 0:01:20.6]} 17... Kd7 {[%clk
0:02:35.2]} 18. Ng5 {[%clk 0:01:09.3]} 18... h6 {[%clk 0:02:03.3]} 19. Rxe8
{[%clk 0:00:56.3]} 19... Kxe8 {[%clk 0:02:02]} 20. Re1+ {[%clk 0:00:46.4]} 20...
Kf8 {[%clk 0:01:59.9]} 21. Ne6+ {[%clk 0:00:45.4]} 21... Bxe6 {[%clk 0:01:59.6]}
22. Rxe6 {[%clk 0:00:46.1]} 22... Kf7 {[%clk 0:01:56.6]} 23. Re2 {[%clk
0:00:44.8]} 23... c6 {[%clk 0:01:52.6]} 24. Kd2 {[%clk 0:00:44.2]} 24... Rd8
{[%clk 0:01:24.2]} 25. Kd3 {[%clk 0:00:18.6]} 25... Rd7 {[%clk 0:01:23.3]} 26.
f3 {[%clk 0:00:07.4]} 26... Nh5 {[%clk 0:01:21.9]} 27. g3 {[%clk 0:00:07]} 27...
Nf6 {[%clk 0:01:21.1]} 28. d5 {[%clk 0:00:03.4]} 28... c5 {[%clk 0:01:12.2]} 29.
a4 {[%clk 0:00:02.9]} 29... b6 {[%clk 0:01:10.5]} 30. a5 {[%clk 0:00:02.5]}
30... b5 {[%clk 0:00:57.5]} 31. Nxb5 {[%clk 0:00:02.2]} 31... Nxd5 {[%clk
0:00:57.5]} 32. Kc4 {[%clk 0:00:02.1]} 32... Nb4 {[%clk 0:00:55.6]} 33. Rd2
{[%clk 0:00:02.4]} 33... Ke7 {[%clk 0:00:54.6]} 34. Re2+ {[%clk 0:00:02.7]}
34... Kd8 {[%clk 0:00:53.3]} 35. Rd2 {[%clk 0:00:02.8]} 35... Ke7 {[%clk
0:00:30.7]} 36. Nc3 {[%clk 0:00:02.9]} 36... a6 {[%clk 0:00:26.5]} 37. Re2+
{[%clk 0:00:02.7]} 37... Kf6 {[%clk 0:00:26.2]} 38. Rd2 {[%clk 0:00:02.9]} 38...
Ke6 {[%clk 0:00:24.8]} 39. Re2+ {[%clk 0:00:02.6]} 39... Kf5 {[%clk 0:00:24.8]}
40. Nd5 {[%clk 0:00:02.9]} 40... Nc6 {[%clk 0:00:21.8]} 41. g4+ {[%clk
0:00:02.8]} 41... Kg6 {[%clk 0:00:21.3]} 42. f4 {[%clk 0:00:02.7]} 42... Nxa5+
{[%clk 0:00:20.8]} 43. Kd3 {[%clk 0:00:03.1]} 43... Nc6 {[%clk 0:00:21.1]} 44.
Re8 {[%clk 0:00:02.5]} 44... Kf7 {[%clk 0:00:17.3]} 45. Rc8 {[%clk 0:00:02]}
45... Ne7 {[%clk 0:00:11.2]} 46. Nxe7 {[%clk 0:00:02.3]} 46... Kxe7 {[%clk
0:00:11.2]} 47. Ra8 {[%clk 0:00:03]} 47... Rb7 {[%clk 0:00:10.7]} 48. Kc3 {[%clk
0:00:02.4]} 48... Rb6 {[%clk 0:00:10.2]} 49. g5 {[%clk 0:00:02.2]} 49... hxg5
{[%clk 0:00:09.7]} 50. fxg5 {[%clk 0:00:03.1]} 50... Kf7 {[%clk 0:00:10.2]} 51.
h4 {[%clk 0:00:03]} 51... Kg6 {[%clk 0:00:10.7]} 52. Rd8 {[%clk 0:00:02.9]}
52... Rc6 {[%clk 0:00:07.4]} 53. Rh8 {[%clk 0:00:02.6]} 53... Rc7 {[%clk
0:00:02.6]} 54. Rd8 {[%clk 0:00:02.6]} 54... Rc6 {[%clk 0:00:02.8]} 55. Kc4
{[%clk 0:00:03]} 55... Rb6 {[%clk 0:00:02.7]} 56. b3 {[%clk 0:00:02.7]} 56...
Rb4+ {[%clk 0:00:02.6]} 57. Kc3 {[%clk 0:00:03]} 57... Rd4 {[%clk 0:00:02.2]}
58. Ra8 {[%clk 0:00:02.8]} 58... Rxh4 {[%clk 0:00:01.4]} 59. Rxa6 {[%clk
0:00:02.8]} 59... Rd4 {[%clk 0:00:02]} 60. Ra7 {[%clk 0:00:03.2]} 60... Kxg5
{[%clk 0:00:02.3]} 61. Rxg7+ {[%clk 0:00:03.1]} 61... Kf6 {[%clk 0:00:03]} 62.
Ra7 {[%clk 0:00:02.5]} 62... Ke6 {[%clk 0:00:03.2]} 63. Ra1 {[%clk 0:00:03.4]}
63... Kd5 {[%clk 0:00:02.9]} 64. Rh1 {[%clk 0:00:03.8]} 64... Re4 {[%clk
0:00:02.7]} 65. Ra1 {[%clk 0:00:04.7]} 65... Kc6 {[%clk 0:00:02.9]} 66. Ra6+
{[%clk 0:00:04.4]} 66... Kd5 {[%clk 0:00:03.2]} 67. Ra8 {[%clk 0:00:04.7]} 67...
Re3+ {[%clk 0:00:03.4]} 68. Kc2 {[%clk 0:00:05]} 68... Rf3 {[%clk 0:00:04]} 69.
Rh8 {[%clk 0:00:05]} 69... Kd4 {[%clk 0:00:03.7]} 70. Rh4+ {[%clk 0:00:05]}
70... Kd5 {[%clk 0:00:03.9]} 71. Rh6 {[%clk 0:00:04.7]} 71... Kc6 {[%clk
0:00:04.3]} 72. Rh4 {[%clk 0:00:03.1]} 72... d5 {[%clk 0:00:04]} 73. Rh8 {[%clk
0:00:02.9]} 73... Kb5 {[%clk 0:00:04.6]} 74. Rb8+ {[%clk 0:00:03.1]} 74... Kc6
{[%clk 0:00:05.2]} 75. Rc8+ {[%clk 0:00:04]} 75... Kd6 {[%clk 0:00:05.5]} 76.
Kb2 {[%clk 0:00:04.2]} 76... Ke5 {[%clk 0:00:05.7]} 77. Rxc5 {[%clk 0:00:03.7]}
77... Kd4 {[%clk 0:00:06.1]} 78. Ra5 {[%clk 0:00:03.4]} 78... Rf2+ {[%clk
0:00:04.8]} 79. Ka3 {[%clk 0:00:03.2]} 79... Rf8 {[%clk 0:00:03.8]} 80. Ra7
{[%clk 0:00:02.7]} 80... Rd8 {[%clk 0:00:03.7]} 81. b4 {[%clk 0:00:02.3]} 81...
Kc4 {[%clk 0:00:04]} 82. Rc7+ {[%clk 0:00:02.5]} 82... Kb5 {[%clk 0:00:03.7]}
83. Rc5+ {[%clk 0:00:02.5]} 83... Kb6 {[%clk 0:00:04.1]} 84. Kb3 {[%clk
0:00:03.4]} 84... d4 {[%clk 0:00:04.5]} 85. Rc1 {[%clk 0:00:02.6]} 85... d3
{[%clk 0:00:04.3]} 86. Rd1 {[%clk 0:00:01.7]} 86... Kb5 {[%clk 0:00:04.7]} 87.
Kc3 {[%clk 0:00:01.6]} 87... d2 {[%clk 0:00:04.9]} 88. Kc2 {[%clk 0:00:01.4]}
88... Kxb4 {[%clk 0:00:04.5]} 89. Rxd2 {[%clk 0:00:01.6]} 89... Rxd2+ {[%clk
0:00:05.2]} 90. Kxd2 {[%clk 0:00:01.7]} 1/2-1/2

[Event "*** Titled Tuesday Blitz"]
[Site "Chess.com"]
[Date "2021.03.09"]
[Round "9"]
[White "SaraciNderim"]
[Black "PopMilan95"]
[Result "0-1"]
[WhiteElo "2782"]
[BlackElo "2639"]
[TimeControl "180+1"]
[EndTime "11:50:33 PST"]
[Termination "PopMilan95 won by resignation"]

1. d4 {[%clk 0:03:00.1]} 1... Nf6 {[%clk 0:02:59.6]} 2. Nf3 {[%clk 0:02:58.4]}
2... g6 {[%clk 0:02:59.2]} 3. c4 {[%clk 0:02:57.7]} 3... Bg7 {[%clk 0:02:59.3]}
4. Nc3 {[%clk 0:02:58]} 4... O-O {[%clk 0:02:59.8]} 5. g3 {[%clk 0:02:58.2]}
5... d6 {[%clk 0:02:58.9]} 6. Bg2 {[%clk 0:02:58.4]} 6... Nc6 {[%clk 0:02:49]}
7. O-O {[%clk 0:02:57.6]} 7... Bg4 {[%clk 0:02:49.3]} 8. d5 {[%clk 0:02:56]}
8... Na5 {[%clk 0:02:48.6]} 9. Nd2 {[%clk 0:02:51.7]} 9... c5 {[%clk 0:02:48.5]}
10. dxc6 {[%clk 0:02:46.3]} 10... Nxc6 {[%clk 0:02:42.8]} 11. Rb1 {[%clk
0:02:40.6]} 11... Qd7 {[%clk 0:02:34.3]} 12. b3 {[%clk 0:02:38]} 12... Bh3
{[%clk 0:02:31.3]} 13. Bb2 {[%clk 0:02:37.1]} 13... Bxg2 {[%clk 0:02:30.8]} 14.
Kxg2 {[%clk 0:02:37]} 14... Rfd8 {[%clk 0:02:28.7]} 15. e4 {[%clk 0:01:44]}
15... e6 {[%clk 0:02:22.1]} 16. Nf3 {[%clk 0:01:37.6]} 16... d5 {[%clk
0:02:17.4]} 17. exd5 {[%clk 0:01:05.2]} 17... exd5 {[%clk 0:02:15]} 18. c5
{[%clk 0:00:37]} 18... d4 {[%clk 0:01:45.1]} 19. Nb5 {[%clk 0:00:35.4]} 19...
Ne4 {[%clk 0:01:43.3]} 20. Qc2 {[%clk 0:00:24.3]} 20... d3 {[%clk 0:00:39.9]}
21. Qc4 {[%clk 0:00:22.8]} 21... Bxb2 {[%clk 0:00:33.3]} 22. Qxe4 {[%clk
0:00:22.2]} 22... Bf6 {[%clk 0:00:27.6]} 23. Nd6 {[%clk 0:00:22]} 23... Be7
{[%clk 0:00:17.6]} 24. Qxd3 {[%clk 0:00:16.9]} 24... Bxd6 {[%clk 0:00:17.8]} 25.
cxd6 {[%clk 0:00:17.3]} 25... Qxd6 {[%clk 0:00:18.7]} 26. Qxd6 {[%clk
0:00:17.6]} 26... Rxd6 {[%clk 0:00:19.6]} 27. b4 {[%clk 0:00:18.5]} 27... Rad8
{[%clk 0:00:19.2]} 28. b5 {[%clk 0:00:18.3]} 28... Nd4 {[%clk 0:00:19.5]} 29.
Nxd4 {[%clk 0:00:14.4]} 29... Rxd4 {[%clk 0:00:20.4]} 30. Rfc1 {[%clk
0:00:12.8]} 30... R8d7 {[%clk 0:00:20.5]} 31. Rc8+ {[%clk 0:00:11.8]} 31... Kg7
{[%clk 0:00:20.6]} 32. Rb2 {[%clk 0:00:12.4]} 32... R4d6 {[%clk 0:00:19.1]} 33.
a4 {[%clk 0:00:12.2]} 33... b6 {[%clk 0:00:18.5]} 34. Rbc2 {[%clk 0:00:11.2]}
34... Rd4 {[%clk 0:00:18.1]} 35. R8c4 {[%clk 0:00:11.3]} 35... Rxc4 {[%clk
0:00:15.8]} 36. Rxc4 {[%clk 0:00:12.2]} 36... Re7 {[%clk 0:00:15]} 37. Kf3
{[%clk 0:00:12.4]} 37... h5 {[%clk 0:00:15.4]} 38. Kf4 {[%clk 0:00:12.3]} 38...
Kf6 {[%clk 0:00:15.1]} 39. f3 {[%clk 0:00:12.7]} 39... Rd7 {[%clk 0:00:15.1]}
40. h4 {[%clk 0:00:13]} 40... Kg7 {[%clk 0:00:13]} 41. Ke4 {[%clk 0:00:12.7]}
41... Kf6 {[%clk 0:00:13.2]} 42. Rc6+ {[%clk 0:00:10.8]} 42... Ke7 {[%clk
0:00:10.6]} 43. g4 {[%clk 0:00:10.8]} 43... hxg4 {[%clk 0:00:07.3]} 44. fxg4
{[%clk 0:00:11.7]} 44... Kf8 {[%clk 0:00:06.3]} 45. h5 {[%clk 0:00:11.9]} 45...
gxh5 {[%clk 0:00:07.2]} 46. gxh5 {[%clk 0:00:12.8]} 46... Kg7 {[%clk 0:00:07.7]}
47. h6+ {[%clk 0:00:12.1]} 47... Kh7 {[%clk 0:00:07.8]} 48. Ke5 {[%clk
0:00:12.6]} 48... Kh8 {[%clk 0:00:05.8]} 49. Kf5 {[%clk 0:00:03.6]} 49... Kh7
{[%clk 0:00:05.9]} 50. Ke4 {[%clk 0:00:04.2]} 50... Kh8 {[%clk 0:00:05.8]} 51.
a5 {[%clk 0:00:03.1]} 51... bxa5 {[%clk 0:00:05.4]} 52. Ra6 {[%clk 0:00:04]}
52... Kh7 {[%clk 0:00:04]} 53. Ke5 {[%clk 0:00:03.5]} 53... Rb7 {[%clk
0:00:03.7]} 54. Rxa5 {[%clk 0:00:03.6]} 54... Kxh6 {[%clk 0:00:04.2]} 55. Kf6
{[%clk 0:00:03.1]} 55... Kh7 {[%clk 0:00:03.5]} 56. Ra1 {[%clk 0:00:01.8]} 56...
Kg8 {[%clk 0:00:03.6]} 57. Ke5 {[%clk 0:00:01.9]} 57... Rxb5+ {[%clk 0:00:02.7]}
58. Kd6 {[%clk 0:00:02.7]} 58... Rb6+ {[%clk 0:00:02.8]} 59. Kc7 {[%clk
0:00:03.2]} 59... Re6 {[%clk 0:00:02.9]} 60. Kd7 {[%clk 0:00:03]} 60... a6
{[%clk 0:00:02.5]} 61. Rg1+ {[%clk 0:00:03.6]} 61... Kf8 {[%clk 0:00:03]} 62.
Rf1 {[%clk 0:00:04.5]} 62... Rg6 {[%clk 0:00:03.5]} 63. Rb1 {[%clk 0:00:03.5]}
63... Kg7 {[%clk 0:00:04.4]} 64. Ke7 {[%clk 0:00:03.2]} 64... a5 {[%clk
0:00:04.4]} 65. Ra1 {[%clk 0:00:02.8]} 65... Re6+ {[%clk 0:00:04.6]} 66. Kd7
{[%clk 0:00:02.2]} 66... Ra6 {[%clk 0:00:05.5]} 67. Ke7 {[%clk 0:00:02]} 67...
Ra7+ {[%clk 0:00:05.4]} 68. Kd6 {[%clk 0:00:02.5]} 68... a4 {[%clk 0:00:06.3]}
69. Ke5 {[%clk 0:00:03.2]} 69... a3 {[%clk 0:00:06.4]} 70. Kf5 {[%clk
0:00:03.8]} 70... a2 {[%clk 0:00:06.6]} 71. Ke5 {[%clk 0:00:04.2]} 71... Ra4
{[%clk 0:00:06.5]} 72. Kf5 {[%clk 0:00:04.4]} 72... f6 {[%clk 0:00:06.7]} 73.
Ke6 {[%clk 0:00:04.8]} 73... Ra6+ {[%clk 0:00:05.6]} 74. Kf5 {[%clk 0:00:04.6]}
74... Kf7 {[%clk 0:00:06.5]} 75. Ke4 {[%clk 0:00:05.2]} 75... Ra5 {[%clk
0:00:06.7]} 76. Kd4 {[%clk 0:00:04.9]} 76... f5 {[%clk 0:00:07]} 77. Kc4 {[%clk
0:00:04.5]} 77... Kf6 {[%clk 0:00:07.5]} 78. Kd4 {[%clk 0:00:05.1]} 78... Ra8
{[%clk 0:00:07.7]} 79. Kd5 {[%clk 0:00:05.3]} 79... Ra4 {[%clk 0:00:07.9]} 80.
Kc5 {[%clk 0:00:03.3]} 80... f4 {[%clk 0:00:08.2]} 81. Kb5 {[%clk 0:00:03.8]}
81... Ra8 {[%clk 0:00:08.5]} 82. Kb4 {[%clk 0:00:04.5]} 82... f3 {[%clk
0:00:08.8]} 83. Kb3 {[%clk 0:00:04.9]} 83... f2 {[%clk 0:00:09.1]} 84. Kb2
{[%clk 0:00:05.4]} 84... Ke5 {[%clk 0:00:08.6]} 85. Kc2 {[%clk 0:00:04.6]} 85...
Ke4 {[%clk 0:00:08.7]} 86. Kd2 {[%clk 0:00:05.2]} 86... Kf3 {[%clk 0:00:08.2]}
87. Kd3 {[%clk 0:00:05.7]} 87... Rd8+ {[%clk 0:00:07]} 88. Kc3 {[%clk
0:00:05.4]} 88... Re8 {[%clk 0:00:07.9]} 89. Kc2 {[%clk 0:00:03.1]} 89... Re1
{[%clk 0:00:08]} 0-1